bitfinex/quotes_SOLUSD_20251006
["timestamp","ask_amount","ask_price","bid_price","bid_amount"]
[1759757203392,4.98783752,234.32,234.27,30.04]
[1759757204199,4.98783752,234.32,234.25,4.24449729]
[1759757204400,4.98783752,234.32,234.26,30.04]
[1759757204804,4.98783752,234.32,234.22,15.43890524]
[1759757204805,20.8,234.28,234.22,3.56449729]
[1759757205099,0.72,234.27,234.22,30.02]
[1759757205298,0.72,234.26,234.22,30.02]
[1759757205890,21.52,234.29,234.22,30.02]
[1759757206098,21.52,234.29,234.23,0.68]
[1759757206295,0.72,234.29,234.23,0.68]
[1759757206604,35.73700788,234.32,234.23,0.68]
[1759757206776,4.2682146,234.29,234.23,0.68]
[1759757208621,12.9125734,234.37,234.23,4.24449729]
[1759757208910,15.62428912,234.36,234.27,3.56449729]
[1759757209093,0.69,234.35,234.28,30.1]
[1759757209482,0.69,234.35,234.28,33.66449729]
[1759757209722,4.26693975,234.36,234.29,0.66]
[1759757212516,4.26693975,234.36,234.29,4.92809038]
[1759757212684,0.79,234.37,234.29,4.92809038]
[1759757212685,0.79,234.37,234.3,0.66]
[1759757212886,0.79,234.37,234.31,7.83234757]
[1759757212887,4.36677221,234.37,234.31,7.83234757]
[1759757214285,4.36677221,234.37,234.31,3.56449729]
[1759757214511,4.36677221,234.37,234.31,7.83233504]
[1759757214901,4.36677221,234.37,234.32,30.08]
[1759757215089,5.05677221,234.37,234.32,30.08]
[1759757215404,0.69,234.36,234.33,30.06]
[1759757215607,4.36677221,234.37,234.34,30.06]
[1759757215608,0.69,234.35,234.34,30.06]
[1759757216494,14.93492638,234.35,234.29,3.55362227]
[1759757216696,14.93492638,234.35,234.27,3.55362227]
[1759757216697,0.69,234.34,234.27,3.55362227]
[1759757216894,14.93492638,234.35,234.24,0.66]
[1759757216895,0.69,234.33,234.26,3.55362227]
[1759757217124,16.89215742,234.35,234.28,30.08]
[1759757217288,0.69,234.32,234.26,3.55362227]
[1759757217595,0.69,234.32,234.24,4.92910355]
[1759757217596,0.69,234.32,234.27,33.63362227]
[1759757217996,0.69,234.31,234.27,3.55362227]
[1759757218186,14.93492638,234.35,234.28,30.08]
[1759757218392,4.95741967,234.34,234.28,30.08]
[1759757218593,4.95741967,234.34,234.28,33.63362227]
[1759757220719,4.26710367,234.36,234.29,0.66]
[1759757221016,4.26710367,234.36,234.29,4.21362227]
[1759757221218,0.69,234.35,234.29,3.55362227]
[1759757221403,0.69,234.35,234.3,30.08]
[1759757221724,0.69,234.34,234.3,30.08]
[1759757222091,4.26710367,234.36,234.28,3.55362227]
[1759757222092,0.69,234.33,234.31,30.06]
[1759757222697,4.95764712,234.33,234.28,3.55362227]
[1759757222898,4.95764712,234.33,234.29,30.06]
[1759757223324,4.95764712,234.33,234.28,3.55362227]
[1759757223506,4.95764712,234.33,234.3,30.06]
[1759757225498,4.26764712,234.33,234.3,30.06]
[1759757226316,4.95727389,234.35,234.3,30.06]
[1759757226534,4.26727389,234.35,234.31,0.66]
[1759757226818,4.26693975,234.36,234.3,30.06]
[1759757227030,4.26693975,234.36,234.32,0.66]
[1759757227320,4.26693975,234.36,234.33,0.66]
[1759757227721,4.26693975,234.36,234.31,4.21362227]
[1759757227921,0.1,234.37,234.34,0.66]
[1759757228115,0.1,234.37,234.35,30.08]
[1759757228715,0.1,234.37,234.32,0.66]
[1759757228716,4.36679108,234.37,234.36,30.06]
[1759757228921,4.36675769,234.37,234.36,30.06]
[1759757229317,0.1,234.37,234.36,30.06]
[1759757229524,4.36675769,234.37,234.36,30.06]
[1759757230226,0.1,234.37,234.36,30.72]
[1759757230406,0.1,234.37,234.34,3.55362227]
[1759757230730,0.1,234.37,234.35,30.06]
[1759757230919,0.1,234.37,234.35,30.72]
[1759757231099,0.1,234.37,234.35,34.32710316]
[1759757231301,0.1,234.37,234.36,0.66]
[1759757231500,0.1,234.37,234.36,30.06]
[1759757232427,0.1,234.37,234.33,4.92748246]
[1759757232608,0.1,234.37,234.34,30.06]
[1759757233030,0.1,234.37,234.34,0.66]
[1759757233329,0.1,234.37,234.35,30.06]
[1759757233832,0.1,234.37,234.36,30.06]
[1759757234209,4.36678852,234.37,234.36,30.06]
[1759757234605,0.1,234.37,234.36,30.06]
[1759757235626,4.36675769,234.37,234.36,30.06]
[1759757235820,4.36675769,234.37,234.33,0.66]
[1759757236126,4.36675769,234.37,234.36,30.04]
[1759757236329,5.05675769,234.37,234.36,30.04]
[1759757237314,4.36675769,234.37,234.36,30.04]
[1759757237833,0.1,234.37,234.36,30.04]
[1759757238033,4.36675769,234.37,234.36,30.04]
[1759757238453,5.08675769,234.37,234.36,30.02]
[1759757239627,0.82,234.37,234.36,30.02]
[1759757239831,0.1,234.37,234.33,3.55362227]
[1759757240017,0.1,234.37,234.34,30.02]
[1759757240737,0.1,234.37,234.35,30.02]
[1759757241437,0.1,234.37,234.36,0.65]
[1759757242449,0.1,234.37,234.35,30.02]
[1759757242624,0.1,234.37,234.35,30.67]
[1759757242826,0.1,234.37,234.35,30.02]
[1759757243439,0.1,234.37,234.35,30.67]
[1759757244729,0.1,234.37,234.36,30.0]
[1759757247346,0.1,234.37,234.36,29.98]
[1759757248182,5.08679964,234.37,234.34,3.55362227]
[1759757248349,5.08679964,234.37,234.29,13.58779866]
[1759757248350,0.72,234.36,234.35,29.98]
[1759757248672,4.36679964,234.37,234.35,29.98]
[1759757249146,4.36679964,234.37,234.36,29.96]
[1759757249475,4.36679964,234.37,234.32,4.20362227]
[1759757249476,5.08679964,234.37,234.32,3.55362227]
[1759757249648,0.72,234.36,234.33,29.98]
[1759757250240,0.72,234.36,234.33,33.53362227]
[1759757250444,0.72,234.36,234.33,29.98]
[1759757251046,0.72,234.36,234.32,3.55362227]
[1759757251271,15.03369386,234.37,234.32,3.55362227]
[1759757251453,15.03369386,234.37,234.3,3.55362227]
[1759757251454,3.05710242,234.34,234.3,3.55362227]
[1759757251654,3.05710242,234.34,234.25,12.52894974]
[1759757251655,4.26766814,234.32,234.29,3.55362227]
[1759757251850,0.72,234.31,234.3,29.98]
[1759757252084,0.72,234.31,234.28,3.55362227]
[1759757252448,0.72,234.31,234.29,33.53362227]
[1759757252674,0.72,234.31,234.29,29.98]
[1759757253979,4.26803243,234.3,234.28,3.55362227]
[1759757254155,4.26803243,234.3,234.29,29.98]
[1759757254568,4.26784729,234.32,234.29,29.98]
[1759757254779,4.98784729,234.32,234.29,29.98]
[1759757255156,4.9870864,234.36,234.3,0.65]
[1759757255360,4.9870864,234.36,234.31,3.55362227]
[1759757255667,10.76612863,234.39,234.32,34.21362227]
[1759757255668,0.1,234.39,234.32,34.21362227]
[1759757255860,20.9,234.39,234.33,3.55362227]
[1759757256067,0.1,234.39,234.33,8.50102239]
[1759757256273,0.1,234.39,234.34,0.68]
[1759757256464,0.1,234.39,234.35,30.66]
[1759757256778,0.1,234.39,234.33,7.82102239]
[1759757256779,0.1,234.39,234.36,29.98]
[1759757256966,5.0267648,234.37,234.36,29.98]
[1759757257271,4.3667648,234.37,234.36,29.98]
[1759757257881,4.3667648,234.37,234.33,3.55362227]
[1759757258055,5.0267648,234.37,234.36,29.98]
[1759757258457,4.3667648,234.37,234.36,29.98]
[1759757259277,5.0267648,234.37,234.32,3.55362227]
[1759757259479,5.0267648,234.37,234.33,29.98]
[1759757259885,4.3667648,234.37,234.33,29.98]
[1759757260056,5.0267648,234.37,234.33,29.98]
[1759757260263,0.1,234.37,234.34,0.68]
[1759757260587,0.1,234.37,234.33,33.53362227]
[1759757260761,0.1,234.37,234.34,29.98]
[1759757261162,0.1,234.37,234.35,0.68]
[1759757261485,0.1,234.37,234.36,0.68]
[1759757261902,0.1,234.37,234.36,30.66]
[1759757263000,0.1,234.37,234.36,34.23362227]
[1759757263196,0.1,234.37,234.36,34.94693975]
[1759757263494,0.1,234.37,234.36,39.71231993]
[1759757264089,0.1,234.37,234.36,5.44538018]
[1759757264295,0.1,234.37,234.36,35.42538018]
[1759757264494,0.1,234.37,234.36,39.69231993]
[1759757264784,0.1,234.37,234.36,9.71231993]
[1759757264966,0.1,234.37,234.36,39.69231993]
[1759757265686,0.1,234.37,234.36,34.74538018]
[1759757265993,0.1,234.37,234.36,35.42538018]
[1759757266199,0.1,234.37,234.36,39.69231993]
[1759757266995,0.1,234.37,234.36,35.42538018]
[1759757267309,0.1,234.37,234.36,34.92693975]
[1759757270001,0.1,234.39,234.38,20.8]
[1759757270305,0.1,234.39,234.38,50.78]
[1759757270607,0.1,234.39,234.38,51.43]
[1759757271081,0.1,234.39,234.38,21.45]
[1759757271280,0.1,234.39,234.38,51.43]
[1759757271697,0.1,234.39,234.38,25.71657564]
[1759757271895,0.1,234.39,234.38,55.69657564]
[1759757272808,0.1,234.39,234.38,25.71657564]
[1759757273012,0.1,234.39,234.38,55.71657564]
[1759757273190,0.1,234.39,234.38,25.71657564]
[1759757273394,0.1,234.39,234.38,55.69657564]
[1759757274207,0.1,234.39,234.38,25.71657564]
[1759757274694,0.1,234.39,234.38,55.69657564]
[1759757277317,0.1,234.39,234.38,25.71657564]
[1759757277610,0.1,234.39,234.38,55.69657564]
[1759757277796,0.1,234.39,234.38,25.71657564]
[1759757277996,0.1,234.39,234.38,55.02657564]
[1759757278693,0.1,234.39,234.38,25.06657564]
[1759757278905,0.1,234.39,234.38,58.57714049]
[1759757279103,0.1,234.39,234.38,25.06657564]
[1759757279293,0.1,234.39,234.38,55.02657564]
[1759757280214,0.67,234.43,234.38,55.02657564]
[1759757280513,0.67,234.42,234.39,3.54970718]
[1759757280721,0.67,234.41,234.4,29.96]
[1759757280917,0.67,234.41,234.39,3.54970718]
[1759757281106,0.1,234.44,234.4,29.96]
[1759757281302,0.1,234.44,234.39,3.54970718]
[1759757281605,0.67,234.43,234.4,29.98]
[1759757281816,0.67,234.42,234.4,29.98]
[1759757282120,0.67,234.41,234.4,29.98]
[1759757283021,0.67,234.41,234.38,3.54970718]
[1759757283328,4.26569054,234.43,234.4,29.98]
[1759757283499,4.26569054,234.43,234.41,29.98]
[1759757283842,4.26569054,234.43,234.42,29.98]
[1759757284423,4.26569054,234.43,234.32,10.6689954]
[1759757284424,15.59985468,234.43,234.4,30.0]
[1759757284733,0.67,234.42,234.4,30.0]
[1759757285097,0.67,234.41,234.4,30.0]
[1759757285423,0.67,234.41,234.34,3.54970718]
[1759757285623,14.92985468,234.43,234.32,4.26766074]
[1759757285624,0.67,234.4,234.35,30.0]
[1759757285797,14.92985468,234.43,234.35,30.0]
[1759757285798,0.67,234.39,234.35,30.0]
[1759757286121,0.67,234.38,234.36,30.0]
[1759757286331,4.93625293,234.4,234.37,30.0]
[1759757286534,0.67,234.39,234.34,7.81693287]
[1759757286695,0.67,234.39,234.35,29.98]
[1759757287435,0.67,234.39,234.35,33.52970718]
[1759757287622,0.67,234.38,234.36,30.0]
[1759757287823,0.67,234.39,234.36,30.0]
[1759757288023,0.67,234.38,234.36,30.0]
[1759757288602,0.67,234.4,234.36,34.26691186]
[1759757288909,0.67,234.42,234.36,34.26691186]
[1759757289112,0.67,234.42,234.36,34.91691186]
[1759757290223,0.1,234.44,234.37,0.65]
[1759757290720,0.1,234.44,234.39,3.54970718]
[1759757291023,0.77,234.44,234.4,29.98]
[1759757291338,0.1,234.44,234.4,34.17970718]
[1759757292224,0.1,234.44,234.42,4.26584762]
[1759757292431,0.1,234.47,234.43,30.0]
[1759757292724,0.1,234.47,234.43,30.65]
[1759757293213,0.1,234.47,234.44,0.65]
[1759757293725,0.1,234.47,234.45,30.0]
[1759757293921,0.1,234.47,234.46,30.0]
[1759757295330,0.47,234.49,234.46,30.0]
[1759757296426,0.47,234.49,234.47,30.0]
[1759757296815,4.26457598,234.49,234.47,30.0]
[1759757297120,4.26402865,234.52,234.47,30.0]
[1759757297323,0.67,234.51,234.48,29.98]
[1759757297632,0.67,234.5,234.44,4.26545838]
[1759757297810,0.67,234.5,234.45,29.98]
[1759757298333,0.67,234.5,234.45,30.68]
[1759757299426,0.71,234.49,234.45,29.98]
[1759757299925,0.71,234.49,234.44,7.81516556]
[1759757300134,0.71,234.49,234.45,29.96]
[1759757301028,4.26414826,234.52,234.45,29.96]
[1759757301329,0.71,234.51,234.45,30.66]
[1759757301513,0.71,234.51,234.45,29.96]
[1759757302229,4.26439232,234.5,234.45,29.96]
[1759757302432,0.71,234.5,234.45,34.20970718]
[1759757303834,0.71,234.5,234.45,33.50970718]
[1759757304036,0.71,234.5,234.45,34.20970718]
[1759757305033,4.97444008,234.5,234.45,30.66]
[1759757305238,4.97444008,234.5,234.46,0.7]
[1759757305412,4.97444008,234.5,234.46,4.24970718]
[1759757305608,10.65942042,234.54,234.46,4.24970718]
[1759757305808,0.71,234.52,234.46,4.24970718]
[1759757306130,4.97408793,234.52,234.46,4.24970718]
[1759757306718,4.97408793,234.52,234.47,29.92]
[1759757306919,4.97423858,234.51,234.47,29.92]
[1759757309926,0.71,234.5,234.47,29.92]
[1759757311024,4.97441994,234.5,234.47,29.92]
[1759757311416,4.97441994,234.5,234.48,29.9]
[1759757311608,0.71,234.5,234.48,29.9]
[1759757312035,4.26445937,234.5,234.46,3.54970718]
[1759757312221,0.71,234.49,234.47,29.9]
[1759757312429,0.71,234.49,234.48,29.9]
[1759757313043,0.71,234.49,234.48,32.74238144]
[1759757313942,0.1,234.53,234.48,32.74238144]
[1759757314113,0.71,234.51,234.49,2.84238144]
[1759757314311,0.1,234.53,234.5,2.84238144]
[1759757314543,0.1,234.53,234.51,32.74238144]
[1759757314742,0.1,234.53,234.52,2.84238144]
[1759757315318,0.81,234.53,234.52,2.84238144]
[1759757316143,0.81,234.53,234.52,29.9]
[1759757317933,0.1,234.53,234.52,29.9]
[1759757319131,0.81,234.53,234.52,29.9]
[1759757319327,0.1,234.53,234.52,32.74153603]
[1759757321147,0.1,234.53,234.52,32.72153603]
[1759757322864,0.81,234.53,234.52,2.84153603]
[1759757323057,0.81,234.53,234.45,3.54970718]
[1759757323261,0.71,234.52,234.46,32.72171036]
[1759757323557,0.1,234.53,234.47,3.54171036]
[1759757323762,0.1,234.53,234.48,2.84171036]
[1759757323949,0.1,234.53,234.49,32.72171036]
[1759757324147,0.71,234.52,234.5,2.84171036]
[1759757324348,0.71,234.51,234.49,29.88]
[1759757324544,0.1,234.53,234.5,2.84170428]
[1759757324740,0.1,234.53,234.49,29.88]
[1759757324953,0.1,234.53,234.5,2.84169746]
[1759757325153,0.71,234.52,234.49,29.88]
[1759757325365,0.1,234.53,234.5,2.84174373]
[1759757325565,0.1,234.53,234.51,2.84174373]
[1759757325754,0.81,234.53,234.52,29.88]
[1759757326360,0.1,234.53,234.52,32.72077686]
[1759757326768,0.81,234.53,234.52,32.72077686]
[1759757327350,0.1,234.53,234.52,32.72077686]
[1759757329542,0.77,234.53,234.52,32.72077686]
[1759757329744,0.77,234.53,234.52,2.84077686]
[1759757329957,0.77,234.53,234.52,1.51077686]
[1759757329958,11.64647521,234.53,234.52,1.51077686]
[1759757330157,11.64647521,234.53,234.43,33.18538018]
[1759757330158,31.67647521,234.49,234.44,0.71]
[1759757330583,32.26647521,234.49,234.44,0.71]
[1759757331179,34.22068831,234.49,234.44,0.71]
[1759757331380,34.22068831,234.49,234.43,28.42]
[1759757331877,20.8,234.43,234.37,29.92]
[1759757332044,1.9542131,234.42,234.37,29.92]
[1759757332243,1.9542131,234.42,234.37,30.63]
[1759757332855,1.9542131,234.42,234.38,0.71]
[1759757333244,1.9542131,234.41,234.35,0.71]
[1759757333452,1.9542131,234.4,234.38,30.0]
[1759757333645,23.3442131,234.39,234.33,3.54970718]
[1759757333869,21.39,234.39,234.34,30.0]
[1759757334853,10.87647521,234.37,234.33,3.54970718]
[1759757335059,10.87647521,234.37,234.33,29.0]
[1759757335060,20.8,234.37,234.33,29.0]
[1759757335360,20.8,234.37,234.33,29.65]
[1759757336273,10.87647521,234.35,234.29,3.54970718]
[1759757336471,11.46647521,234.35,234.31,30.0]
[1759757336859,10.87647521,234.33,234.28,3.54970718]
[1759757337065,10.87647521,234.33,234.25,0.85]
[1759757337066,0.59,234.32,234.27,3.54970718]
[1759757337273,11.46647521,234.31,234.27,30.02]
[1759757338161,20.8,234.32,234.27,30.67]
[1759757338459,21.39,234.32,234.27,30.67]
[1759757338680,20.8,234.32,234.27,30.67]
[1759757338854,20.8,234.32,234.25,0.2]
[1759757339176,20.8,234.32,234.26,30.04]
[1759757339380,20.8,234.32,234.26,30.69]
[1759757340185,20.8,234.32,234.27,30.02]
[1759757340572,20.8,234.32,234.28,0.65]
[1759757340775,20.8,234.32,234.29,0.65]
[1759757341484,20.8,234.32,234.27,30.67]
[1759757341987,21.39,234.32,234.27,30.67]
[1759757342671,21.39,234.32,234.28,30.02]
[1759757342987,21.39,234.32,234.27,0.65]
[1759757343362,21.39,234.32,234.28,30.02]
[1759757344384,20.8,234.32,234.28,30.67]
[1759757344592,20.8,234.32,234.29,30.02]
[1759757344885,20.8,234.32,234.3,0.65]
[1759757345186,20.8,234.32,234.29,30.02]
[1759757345889,20.8,234.32,234.29,30.67]
[1759757346187,10.87647521,234.34,234.3,0.65]
[1759757346485,30.61,234.39,234.3,0.65]
[1759757346486,20.8,234.35,234.3,0.65]
[1759757346784,20.8,234.35,234.31,30.0]
[1759757346963,21.39,234.35,234.31,30.0]
[1759757347170,20.8,234.35,234.31,30.0]
[1759757347478,20.8,234.35,234.32,0.65]
[1759757347799,10.87647521,234.4,234.33,0.65]
[1759757348394,31.67647521,234.4,234.33,0.65]
[1759757349297,10.87647521,234.4,234.33,0.65]
[1759757349672,31.67647521,234.41,234.33,0.65]
[1759757349863,34.22068831,234.41,234.33,0.65]
[1759757350263,1.9542131,234.4,234.34,30.0]
[1759757350483,34.22068831,234.41,234.34,30.0]
[1759757350677,32.26647521,234.41,234.34,30.0]
[1759757350880,32.26647521,234.41,234.34,30.65]
[1759757352387,10.87647521,234.47,234.35,0.65]
[1759757353091,20.8,234.44,234.35,0.65]
[1759757353274,10.87647521,234.47,234.35,0.65]
[1759757353478,20.8,234.44,234.35,0.65]
[1759757353681,10.87647521,234.47,234.35,0.65]
[1759757353873,20.8,234.44,234.35,0.65]
[1759757354274,20.8,234.44,234.36,30.02]
[1759757354485,20.8,234.44,234.37,0.65]
[1759757354682,20.8,234.44,234.38,30.02]
[1759757355095,20.8,234.44,234.37,0.65]
[1759757355296,20.8,234.44,234.38,30.69]
[1759757355500,20.8,234.44,234.39,0.65]
[1759757355701,20.8,234.44,234.4,0.65]
[1759757355884,20.8,234.44,234.41,0.65]
[1759757356273,20.8,234.44,234.41,30.69]
[1759757356893,20.8,234.44,234.38,0.65]
[1759757357071,3.64629208,234.43,234.35,0.65]
[1759757357272,20.8,234.44,234.38,28.5]
[1759757357472,20.8,234.44,234.38,29.15]
[1759757357688,21.39,234.44,234.38,29.15]
[1759757357997,21.39,234.44,234.38,28.5]
[1759757358377,24.44629208,234.44,234.38,28.5]
[1759757359495,3.05629208,234.41,234.37,30.02]
[1759757360886,3.05629208,234.41,234.35,0.7]
[1759757361098,3.05629208,234.41,234.37,30.02]
[1759757361578,3.05629208,234.4,234.35,0.7]
[1759757361917,3.05629208,234.36,234.32,0.7]
[1759757362074,3.05629208,234.36,234.25,0.2]
[1759757362075,3.05629208,234.35,234.29,0.7]
[1759757362385,3.05629208,234.34,234.3,30.02]
[1759757362698,3.05629208,234.34,234.31,0.7]
[1759757363078,20.8,234.36,234.31,0.7]
[1759757363277,3.05629208,234.35,234.31,0.7]
[1759757363680,3.05629208,234.34,234.25,0.2]
[1759757363881,3.05629208,234.32,234.26,0.7]
[1759757364099,3.05629208,234.31,234.27,28.84774134]
[1759757364407,3.05629208,234.3,234.27,28.84774134]
[1759757364611,3.05629208,234.3,234.27,30.0]
[1759757365488,3.05629208,234.32,234.28,0.7]
[1759757366288,3.05629208,234.32,234.28,30.7]
[1759757367097,3.05629208,234.32,234.28,0.7]
[1759757367306,3.05629208,234.32,234.28,30.7]
[1759757367609,10.87647521,234.32,234.28,30.7]
[1759757368194,10.87647521,234.33,234.28,30.7]
[1759757368396,3.05629208,234.32,234.28,30.0]
[1759757368602,10.87647521,234.41,234.29,0.7]
[1759757368986,20.8,234.38,234.29,0.7]
[1759757370401,10.87647521,234.41,234.29,0.7]
[1759757371217,0.59,234.43,234.29,0.7]
[1759757371421,10.87647521,234.42,234.29,0.7]
[1759757372198,20.8,234.4,234.3,30.0]
[1759757372395,20.8,234.4,234.28,20.8]
[1759757372396,20.8,234.4,234.31,30.7]
[1759757372619,10.87647521,234.44,234.32,0.7]
[1759757372795,32.26647521,234.44,234.32,0.7]
[1759757373205,32.26647521,234.44,234.33,30.0]
[1759757373514,35.32276729,234.44,234.34,0.7]
[1759757373803,32.26647521,234.44,234.34,0.7]
[1759757374409,31.67647521,234.44,234.34,0.7]
[1759757374621,32.26647521,234.44,234.34,0.7]
[1759757376302,0.59,234.47,234.34,0.7]
[1759757376494,21.39,234.47,234.34,0.7]
[1759757378509,21.39,234.47,234.36,20.8]
[1759757378684,21.39,234.47,234.37,0.66]
[1759757380092,21.39,234.47,234.38,30.0]
[1759757380306,0.59,234.46,234.38,30.66]
[1759757380999,0.59,234.46,234.39,0.66]
[1759757382590,0.59,234.46,234.34,20.8]
[1759757382591,0.59,234.46,234.36,0.66]
[1759757382895,0.59,234.46,234.37,29.98]
[1759757383095,0.59,234.45,234.37,30.64]
[1759757383502,23.85629208,234.47,234.37,30.64]
[1759757383716,0.59,234.46,234.37,0.66]
[1759757383925,0.59,234.46,234.38,29.98]
[1759757384105,0.59,234.45,234.38,29.98]
[1759757384305,0.59,234.45,234.37,0.66]
[1759757384629,0.59,234.45,234.38,29.98]
[1759757385192,0.59,234.44,234.37,0.66]
[1759757385397,3.64629208,234.44,234.38,29.98]
[1759757385616,0.59,234.44,234.38,29.98]
[1759757385912,20.8,234.43,234.28,12.80546366]
[1759757386212,20.8,234.43,234.34,0.66]
[1759757386999,0.59,234.42,234.34,0.66]
[1759757387197,20.8,234.43,234.34,0.66]
[1759757387811,21.39,234.43,234.35,29.96]
[1759757387997,21.39,234.43,234.35,30.68]
[1759757388197,20.8,234.43,234.35,30.68]
[1759757388405,20.8,234.43,234.36,0.72]
[1759757388406,21.39,234.43,234.36,0.72]
[1759757389007,21.39,234.43,234.37,29.96]
[1759757389319,0.59,234.42,234.37,29.96]
[1759757389819,0.59,234.42,234.37,30.68]
[1759757390798,20.8,234.43,234.37,30.68]
[1759757391414,0.59,234.43,234.35,0.72]
[1759757391614,21.39,234.43,234.36,29.94]
[1759757392206,21.39,234.43,234.36,30.66]
[1759757392919,20.8,234.43,234.37,0.72]
[1759757393417,20.8,234.43,234.38,29.94]
[1759757393604,20.8,234.43,234.39,0.72]
[1759757393805,20.8,234.43,234.38,29.94]
[1759757394001,13.93276729,234.46,234.39,0.72]
[1759757394002,0.59,234.46,234.39,0.72]
[1759757397051,3.05629208,234.48,234.39,0.72]
[1759757397333,20.8,234.48,234.39,0.72]
[1759757397538,21.39,234.48,234.39,0.72]
[1759757397934,10.87647521,234.47,234.4,29.92]
[1759757398143,10.87647521,234.47,234.41,0.72]
[1759757398322,11.46647521,234.47,234.4,29.92]
[1759757398938,11.46647521,234.47,234.4,30.64]
[1759757399441,0.59,234.46,234.4,30.64]
[1759757399936,11.46647521,234.47,234.4,30.64]
[1759757400138,0.59,234.47,234.41,0.72]
[1759757400438,3.64629208,234.47,234.4,30.64]
[1759757400641,10.87647521,234.49,234.4,29.92]
[1759757400944,21.39,234.5,234.41,0.72]
[1759757401132,0.59,234.49,234.41,0.72]
[1759757401437,10.87647521,234.46,234.4,29.92]
[1759757401636,0.59,234.45,234.39,30.64]
[1759757401830,10.87647521,234.46,234.4,0.72]
[1759757402025,0.1,234.57,234.4,0.72]
[1759757402226,0.69,234.53,234.42,20.8]
[1759757402442,0.59,234.52,234.43,0.72]
[1759757402633,3.05629208,234.52,234.43,30.7]
[1759757402832,0.1,234.53,234.44,0.72]
[1759757403527,3.05629208,234.51,234.44,30.7]
[1759757403724,0.59,234.51,234.44,29.98]
[1759757403925,3.64629208,234.51,234.44,29.98]
[1759757404125,0.59,234.51,234.45,0.72]
[1759757404343,10.87647521,234.52,234.45,0.72]
[1759757404520,20.8,234.52,234.45,0.72]
[1759757406639,10.87647521,234.51,234.45,0.72]
[1759757406839,3.15629208,234.53,234.45,0.72]
[1759757407027,14.03276729,234.53,234.45,0.72]
[1759757407221,3.64629208,234.52,234.45,0.72]
[1759757407637,10.87647521,234.51,234.42,0.72]
[1759757407833,10.87647521,234.51,234.45,30.0]
[1759757408033,10.87647521,234.51,234.46,0.72]
[1759757408237,11.46647521,234.51,234.44,0.72]
[1759757408433,0.59,234.51,234.44,0.72]
[1759757408635,10.97647521,234.53,234.44,29.18]
[1759757408836,10.87647521,234.51,234.44,0.72]
[1759757409038,10.87647521,234.51,234.45,30.0]
[1759757409637,10.87647521,234.51,234.45,30.72]
[1759757409839,0.59,234.52,234.45,30.72]
[1759757409840,10.87647521,234.52,234.46,0.72]
[1759757410050,0.1,234.53,234.46,0.72]
[1759757411927,0.1,234.53,234.48,20.8]
[1759757412144,0.1,234.53,234.49,21.52]
[1759757412351,0.1,234.53,234.49,51.54]